bitfinex/quotes_BTCUSD_20250615
["timestamp","ask_amount","ask_price","bid_price","bid_amount"]
[1750008083138,1.17208302,105720.0,105710.0,0.25761332]
[1750008083329,1.17208302,105720.0,105710.0,0.26707288]
[1750008083541,1.17208302,105720.0,105710.0,0.23991644]
[1750008083750,1.17208302,105720.0,105710.0,0.24815421]
[1750008083950,1.16262461,105720.0,105710.0,0.23045669]
[1750008084302,1.16262461,105720.0,105710.0,0.25761417]
[1750008084521,1.16262461,105720.0,105710.0,0.26707383]
[1750008084727,1.16262461,105720.0,105710.0,0.26707373]
[1750008085104,1.16262461,105720.0,105710.0,0.38521669]
[1750008085311,1.16262461,105720.0,105710.0,0.39345367]
[1750008085532,1.16262461,105720.0,105710.0,0.05049691]
[1750008085751,1.17339395,105720.0,105710.0,0.03409691]
[1750008085962,1.75823513,105720.0,105710.0,0.03409706]
[1750008086361,1.15316594,105720.0,105710.0,0.0164]
[1750008086830,1.15316594,105720.0,105710.0,0.0340988]
[1750008087056,1.75823513,105720.0,105710.0,0.03409824]
[1750008087278,1.75823513,105720.0,105710.0,0.03409792]
[1750008087489,1.15316594,105720.0,105710.0,0.0164]
[1750008087697,1.15316594,105720.0,105710.0,0.03409792]
[1750008088113,1.15316594,105720.0,105710.0,0.0164]
[1750008088331,1.15316594,105720.0,105710.0,0.03409773]
[1750008088552,1.15316594,105720.0,105710.0,0.0164]
[1750008088759,1.15316594,105720.0,105710.0,0.03409738]
[1750008088975,1.08585335,105720.0,105710.0,0.03409738]
[1750008089186,1.0763945,105720.0,105710.0,0.03409807]
[1750008089444,1.0763945,105720.0,105710.0,0.0164]
[1750008089871,6.1428945,105720.0,105710.0,0.01869958]
[1750008090098,6.1428945,105720.0,105710.0,0.01869956]
[1750008090304,6.1428945,105720.0,105710.0,0.001]
[1750008090514,6.1428945,105720.0,105710.0,0.01869969]
[1750008090958,6.1428945,105720.0,105710.0,0.01870008]
[1750008091383,6.1428945,105720.0,105710.0,0.001]
[1750008091590,6.1428945,105720.0,105710.0,0.0187023]
[1750008091989,6.1428945,105720.0,105710.0,0.01870265]
[1750008092184,6.1428945,105720.0,105710.0,0.01870238]
[1750008092425,6.1428945,105720.0,105710.0,0.01870291]
[1750008092648,6.1428945,105720.0,105710.0,0.01870298]
[1750008092855,6.16165437,105720.0,105710.0,0.001]
[1750008093064,6.1428945,105720.0,105710.0,0.01870263]
[1750008093291,6.1428945,105720.0,105710.0,0.0187027]
[1750008093507,6.1428945,105720.0,105710.0,0.01870278]
[1750008093718,5.94991748,105720.0,105710.0,0.001]
[1750008094024,6.13909644,105720.0,105710.0,0.001]
[1750008094461,6.13909644,105720.0,105710.0,0.01871014]
[1750008094686,6.13909644,105720.0,105710.0,0.01870987]
[1750008094903,6.7730948,105720.0,105710.0,0.01870976]
[1750008095121,6.2353382,105720.0,105710.0,0.01870976]
[1750008095338,6.2353382,105720.0,105710.0,0.0187108]
[1750008095760,6.2353382,105720.0,105710.0,0.01871006]
[1750008096184,6.2353382,105720.0,105710.0,0.01870992]
[1750008096418,6.2353382,105720.0,105710.0,0.01871046]
[1750008096648,6.3890582,105720.0,105710.0,0.01871059]
[1750008096867,6.48520742,105720.0,105710.0,0.01871064]
[1750008097098,6.48520742,105720.0,105710.0,0.001]
[1750008097527,6.48520742,105720.0,105710.0,0.01871089]
[1750008097763,6.48520742,105720.0,105710.0,0.01871109]
[1750008098204,6.48520742,105720.0,105710.0,0.01871118]
[1750008098430,6.48520742,105720.0,105710.0,0.001]
[1750008098635,6.48520742,105720.0,105710.0,0.01871118]
[1750008098845,6.48520742,105720.0,105710.0,0.01871115]
[1750008099060,6.48520742,105720.0,105710.0,0.01871136]
[1750008099265,6.48520742,105720.0,105710.0,0.01871142]
[1750008099472,6.48520742,105720.0,105710.0,0.001]
[1750008100320,6.48520742,105720.0,105710.0,0.01871199]
[1750008100917,6.48520742,105720.0,105710.0,0.001]
[1750008101377,7.03476402,105720.0,105710.0,0.001]
[1750008101613,7.03476402,105720.0,105710.0,0.01871347]
[1750008101827,7.03476402,105720.0,105710.0,0.001]
[1750008102064,7.03476402,105720.0,105710.0,0.01871455]
[1750008102279,7.06320302,105720.0,105710.0,0.001]
[1750008102460,6.9670538,105720.0,105710.0,0.001]
[1750008102698,6.9552538,105720.0,105710.0,0.01871605]
[1750008102908,6.9552538,105720.0,105710.0,0.001]
[1750008103121,6.9552538,105720.0,105710.0,0.01871751]
[1750008103334,6.4174972,105720.0,105710.0,0.01871769]
[1750008104108,6.4286182,105720.0,105710.0,0.01871829]
[1750008104327,6.4286182,105720.0,105710.0,0.01871862]
[1750008104508,6.4286182,105720.0,105710.0,0.01871954]
[1750008104706,6.4286182,105720.0,105710.0,0.01871985]
[1750008105097,6.08295732,105720.0,105710.0,0.01871985]
[1750008105327,6.08295732,105720.0,105710.0,0.01872044]
[1750008105510,6.09241626,105720.0,105710.0,0.01872044]
[1750008105712,6.09241626,105720.0,105710.0,0.01871994]
[1750008105991,6.07591626,105720.0,105710.0,0.001]
[1750008106176,6.07591626,105720.0,105710.0,0.03492031]
[1750008106380,6.07591626,105720.0,105710.0,0.03492041]
[1750008106552,6.07591626,105720.0,105710.0,0.0172]
[1750008107263,6.41591626,105720.0,105710.0,0.0172]
[1750008111000,7.08824538,105720.0,105710.0,0.0172]
[1750008113149,7.14254104,105720.0,105710.0,0.0172]
[1750008113357,7.08824538,105720.0,105710.0,0.0172]
[1750008115977,7.08824538,105720.0,105710.0,0.001]
[1750008116364,7.08824538,105720.0,105710.0,0.0165]
[1750008121963,5.68487966,105720.0,105710.0,0.0165]
[1750008122189,7.08824538,105720.0,105710.0,0.0317]
[1750008124735,7.08824538,105720.0,105710.0,0.0165]
[1750008126456,7.08824538,105720.0,105710.0,0.0327]
[1750008127353,7.08824538,105720.0,105710.0,0.0165]
[1750008128331,7.08824538,105720.0,105710.0,0.01514]
[1750008136896,5.87815966,105720.0,105710.0,0.01514]
[1750008137109,7.08824538,105720.0,105710.0,0.01514]
[1750008146523,0.53865651,105710.0,105700.0,0.0318]
[1750008146748,6.38609035,105710.0,105700.0,0.0318]
[1750008147614,6.38609035,105710.0,105700.0,0.0338]
[1750008147832,6.38609035,105710.0,105700.0,0.0358]
[1750008148505,6.42565035,105710.0,105700.0,0.0358]
[1750008157645,6.32950113,105710.0,105700.0,0.0358]
[1750008161407,1.27950113,105710.0,105700.0,0.0358]
[1750008164504,1.23994113,105710.0,105700.0,0.0358]
[1750008164726,1.27950113,105710.0,105700.0,0.0358]
[1750008165807,1.30794113,105710.0,105700.0,0.0358]
[1750008171056,1.27950113,105710.0,105700.0,0.0358]
[1750008172080,1.23994113,105710.0,105700.0,0.0358]
[1750008173740,0.63489827,105710.0,105700.0,0.0358]
[1750008173943,1.23994113,105710.0,105700.0,0.0358]
[1750008174615,0.63489827,105710.0,105700.0,0.0358]
[1750008174817,1.23994113,105710.0,105700.0,0.0358]
[1750008181309,1.2494007,105710.0,105700.0,0.0358]
[1750008181853,0.34,105710.0,105700.0,0.25224849]
[1750008182082,0.01891655,105720.0,105710.0,0.24031608]
[1750008182313,0.02837496,105720.0,105710.0,0.24977529]
[1750008182534,0.97341782,105720.0,105710.0,0.24977529]
[1750008183213,0.36837496,105720.0,105710.0,0.24977529]
[1750008183451,6.17873666,105730.0,105720.0,0.24029622]
[1750008183663,6.52819462,105730.0,105720.0,0.25800135]
[1750008183888,6.52819453,105730.0,105720.0,0.2580005]
[1750008184108,6.52819453,105730.0,105720.0,0.25799992]
[1750008184335,0.97357897,105730.0,105720.0,0.27698854]
[1750008184557,0.97357897,105730.0,105720.0,0.28644686]
[1750008184558,0.64303657,105730.0,105720.0,0.28644686]
[1750008184800,0.03799371,105730.0,105720.0,0.30414669]
[1750008185035,0.64303657,105730.0,105720.0,0.25921312]
[1750008185258,0.03999371,105730.0,105720.0,0.2769126]
[1750008185472,0.64703657,105730.0,105720.0,0.27691243]
[1750008185679,0.65249426,105730.0,105720.0,0.27691245]
[1750008185924,0.63357897,105730.0,105720.0,0.27691228]
[1750008186140,0.64303648,105730.0,105720.0,0.25921312]
[1750008186352,0.64303648,105730.0,105720.0,0.27691255]
[1750008186558,0.64303648,105730.0,105720.0,0.25921312]
[1750008186773,0.64303648,105730.0,105720.0,0.27691268]
[1750008187189,0.64303648,105730.0,105720.0,0.27691254]
[1750008187405,0.64303648,105730.0,105720.0,0.27691262]
[1750008187619,0.64303648,105730.0,105720.0,0.27691254]
[1750008187825,0.64303648,105730.0,105720.0,0.27691292]
[1750008188047,0.65249408,105730.0,105720.0,0.27691387]
[1750008188301,0.65249408,105730.0,105720.0,0.27691431]
[1750008188573,0.65249408,105730.0,105720.0,0.25921312]
[1750008189413,0.66195186,105730.0,105720.0,0.25921312]
[1750008189853,0.66195186,105730.0,105720.0,0.2497548]
[1750008190278,0.65249408,105730.0,105720.0,0.25921312]
[1750008190493,0.66195186,105730.0,105720.0,0.25921312]
[1750008190926,0.65249408,105730.0,105720.0,0.25921312]
[1750008191189,0.66195186,105730.0,105720.0,0.25921312]
[1750008191397,0.66195186,105730.0,105720.0,0.2497548]
[1750008191602,0.66195186,105730.0,105720.0,0.25921312]
[1750008191808,0.056909,105730.0,105720.0,0.25921312]
[1750008192018,0.66195186,105730.0,105720.0,0.2497548]
[1750008192448,0.66195186,105730.0,105720.0,0.24975498]
[1750008192449,0.67140991,105730.0,105720.0,0.24975498]
[1750008192694,0.66195186,105730.0,105720.0,0.42231189]
[1750008192909,0.66195186,105730.0,105720.0,0.42231145]
[1750008193948,0.66195186,105730.0,105720.0,0.41285313]
[1750008194359,0.65249408,105730.0,105720.0,0.42231145]
[1750008195102,0.66195186,105730.0,105720.0,0.42231145]
[1750008195740,0.94726269,105730.0,105720.0,0.24029666]
[1750008195952,0.94726323,105730.0,105720.0,0.39393657]
[1750008196344,0.94726323,105730.0,105720.0,0.40339524]
[1750008196993,0.94726323,105730.0,105720.0,0.39393657]
[1750008197195,0.75810216,105730.0,105720.0,0.40339524]
[1750008197538,0.93780518,105730.0,105720.0,0.39393657]
[1750008197740,0.84165596,105730.0,105720.0,0.38447781]
[1750008197943,0.84165596,105730.0,105720.0,0.19529894]
[1750008198368,0.84165596,105730.0,105720.0,0.39393675]
[1750008199025,0.84165596,105730.0,105720.0,0.3844779]
[1750008199259,1.27780518,105730.0,105720.0,0.0157]
[1750008199460,1.2588898,105730.0,105720.0,0.16934]
[1750008200235,1.2588898,105730.0,105720.0,0.0157]
[1750008200443,1.2873228,105730.0,105720.0,0.0157]
[1750008203327,0.53863772,105720.0,105710.0,0.0158]
[1750008203555,1.74872344,105720.0,105710.0,0.0318]
[1750008204627,1.74872344,105720.0,105710.0,0.0358]
[1750008205835,1.84487266,105720.0,105710.0,0.0358]
[1750008206614,1.74872344,105720.0,105710.0,0.0358]
[1750008208926,1.74872344,105720.0,105710.0,0.0198]
[1750008209376,0.53863772,105720.0,105710.0,0.0363]
[1750008209601,1.74872344,105720.0,105710.0,0.0363]
[1750008209823,1.14368058,105720.0,105710.0,0.0363]
[1750008211532,1.84487266,105720.0,105710.0,0.0363]
[1750008211780,1.2398298,105720.0,105710.0,0.0363]
[1750008214763,1.84487266,105720.0,105710.0,0.0198]
[1750008215220,1.84487266,105720.0,105710.0,0.03876]
[1750008215427,1.84487266,105720.0,105710.0,0.0198]
[1750008224634,1.84487266,105720.0,105710.0,0.0362]
[1750008224838,1.74872344,105720.0,105710.0,0.0362]
[1750008225045,1.14368058,105720.0,105710.0,0.0362]
[1750008231160,1.17211558,105720.0,105710.0,0.0362]
[1750008231439,1.77715844,105720.0,105710.0,0.0362]
[1750008233835,1.87330766,105720.0,105710.0,0.0362]
[1750008235130,7.01954942,105720.0,105710.0,0.0362]
[1750008235327,7.01954942,105720.0,105710.0,0.0198]
[1750008235528,7.03614942,105720.0,105710.0,0.004]
[1750008237863,7.01954942,105720.0,105710.0,0.004]
[1750008238868,7.01954942,105720.0,105710.0,0.0206]
[1750008240062,6.9234002,105720.0,105710.0,0.0206]
[1750008246764,6.9386002,105720.0,105710.0,0.004]
[1750008247363,6.96700592,105720.0,105710.0,0.004]
[1750008248013,6.96700592,105720.0,105710.0,0.002]
[1750008248230,7.06315514,105720.0,105710.0,0.002]
[1750008249078,7.03474942,105720.0,105710.0,0.002]
[1750008249285,0.53865651,105710.0,105700.0,0.032]
[1750008249533,1.23994113,105710.0,105700.0,0.032]
[1750008250760,1.23994113,105710.0,105700.0,0.036]
[1750008250964,1.31007139,105710.0,105700.0,0.036]
[1750008251803,1.33851039,105710.0,105700.0,0.036]
[1750008254101,6.38851039,105710.0,105700.0,0.036]
[1750008254548,6.38851039,105710.0,105700.0,0.02]
[1750008255454,6.38851039,105710.0,105700.0,0.0358]
[1750008255692,6.38851039,105710.0,105700.0,0.02]
[1750008256165,6.38851039,105710.0,105700.0,0.004]
[1750008256166,7.01015325,105710.0,105700.0,0.004]
[1750008256391,7.16375325,105710.0,105700.0,0.004]
[1750008256626,6.57081039,105710.0,105700.0,0.004]
[1750008256830,6.59921611,105710.0,105700.0,0.004]
[1750008257049,6.57081039,105710.0,105700.0,0.004]
[1750008257711,5.5886753,105700.0,105690.0,0.0159]
[1750008257929,6.38610914,105700.0,105690.0,0.0159]
[1750008258379,7.019596,105700.0,105690.0,0.0159]
[1750008258640,7.019596,105700.0,105680.0,100.0262]
[1750008258641,5.58869411,105690.0,105680.0,100.0262]
[1750008258867,6.93450159,105690.0,105680.0,100.0262]
[1750008259136,7.03065081,105690.0,105680.0,100.0262]
[1750008259983,7.03065081,105690.0,105680.0,100.02828943]
[1750008260806,7.03065081,105690.0,105680.0,100.02928943]
[1750008261493,7.05953375,105690.0,105680.0,100.04428943]
[1750008264585,7.05953375,105690.0,105680.0,100.0620431]
[1750008264803,7.05953375,105690.0,105680.0,100.06204302]
[1750008265040,7.05953375,105690.0,105680.0,100.04704302]
[1750008265256,7.05953375,105690.0,105680.0,100.02928943]
[1750008265697,7.05953375,105690.0,105680.0,100.04704321]
[1750008265912,7.05953375,105690.0,105680.0,100.02928943]
[1750008266126,7.05953375,105690.0,105680.0,100.04704334]
[1750008266335,7.05953375,105690.0,105680.0,100.02928943]
[1750008266553,7.05953375,105690.0,105680.0,100.04704334]
[1750008266766,7.05953375,105690.0,105680.0,100.02928943]
[1750008266979,7.05953375,105690.0,105680.0,100.0470435]
[1750008267231,7.08797975,105690.0,105680.0,100.0470435]
[1750008267441,7.08797975,105690.0,105680.0,100.02928943]
[1750008267651,7.08797975,105690.0,105680.0,100.0470435]
[1750008267871,7.08797975,105690.0,105680.0,100.02928943]
[1750008268773,6.99183053,105690.0,105680.0,100.02928943]
[1750008269619,6.99183053,105690.0,105680.0,100.04528943]
[1750008271199,6.99187053,105690.0,105680.0,100.04528943]
[1750008272659,6.99187053,105690.0,105680.0,100.02928943]
[1750008273509,6.98240908,105690.0,105680.0,100.02928943]
[1750008273756,6.99187053,105690.0,105680.0,100.02928943]
[1750008276588,7.14551053,105690.0,105680.0,100.02928943]
[1750008276798,6.99187053,105690.0,105680.0,100.02928943]
[1750008277207,7.24165975,105690.0,105680.0,100.02928943]
[1750008278237,6.99187053,105690.0,105680.0,100.02928943]
[1750008280498,6.99187053,105690.0,105680.0,100.04448943]
[1750008284496,6.95235053,105690.0,105680.0,100.04448943]
[1750008284728,6.99183053,105690.0,105680.0,100.04448943]
[1750008297434,6.99183053,105690.0,105680.0,100.02928943]
[1750008298475,6.99183053,105690.0,105680.0,100.04508943]
[1750008300594,5.78174481,105690.0,105680.0,100.04508943]
[1750008301037,6.99183053,105690.0,105680.0,100.04508943]
[1750008304150,6.99183053,105690.0,105680.0,100.19868943]
[1750008305990,6.99183053,105690.0,105680.0,100.04508943]
[1750008306246,7.08797975,105690.0,105680.0,100.02928943]
[1750008306492,7.29841967,105690.0,105680.0,99.98301917]
[1750008306766,7.28631967,105690.0,105680.0,99.98301917]
[1750008306994,7.09323967,105690.0,105680.0,99.98301917]
[1750008307208,5.96368473,105690.0,105680.0,100.01381917]
[1750008307416,7.14543053,105690.0,105680.0,100.01381917]
[1750008307623,7.14543053,105690.0,105680.0,100.01281917]
[1750008308082,7.14643053,105690.0,105680.0,100.01281917]
[1750008308302,6.95335053,105690.0,105680.0,100.02856828]
[1750008308521,7.14743053,105690.0,105680.0,100.01081917]
[1750008308950,7.14743053,105690.0,105680.0,100.02856719]
[1750008309402,7.14743053,105690.0,105680.0,100.01081917]
[1750008309612,7.14743053,105690.0,105680.0,100.0285675]
[1750008309830,7.14743053,105690.0,105680.0,100.01081917]
[1750008310072,7.14743053,105690.0,105680.0,100.02856756]
[1750008310305,7.19068383,105690.0,105680.0,100.02856756]
[1750008310527,7.19068383,105690.0,105680.0,100.01081917]
[1750008311022,7.19068383,105690.0,105680.0,100.02856786]
[1750008311262,7.19068383,105690.0,105680.0,100.01081917]
[1750008311477,7.19068383,105690.0,105680.0,100.02856786]
[1750008312147,7.19068383,105690.0,105680.0,100.01081917]
[1750008312360,7.19068383,105690.0,105680.0,100.02856786]
[1750008313218,7.19068383,105690.0,105680.0,100.01081917]
[1750008314388,7.19068383,105690.0,105680.0,100.02856975]
[1750008314575,7.19068383,105690.0,105680.0,100.02856976]
[1750008314952,6.95435053,105690.0,105680.0,100.02856976]
[1750008315171,6.97484589,105690.0,105680.0,100.18216751]
[1750008315385,6.97484589,105690.0,105680.0,100.18216721]
[1750008315613,5.99032303,105690.0,105680.0,100.37141763]
[1750008315826,5.99032303,105690.0,105680.0,100.39033875]
[1750008315827,0.62596477,105690.0,105680.0,100.39033875]
[1750008316038,0.63542604,105690.0,105680.0,100.3903357]
[1750008316254,0.97542604,105690.0,105680.0,100.38205632]
[1750008316467,0.97542604,105690.0,105680.0,100.39972806]
[1750008316672,0.97542604,105690.0,105680.0,100.39972803]
[1750008316882,0.97542604,105690.0,105680.0,100.40918992]
[1750008317090,0.97542604,105690.0,105680.0,100.40918985]
[1750008317305,0.97542604,105690.0,105680.0,100.399728]
[1750008317520,0.98488749,105690.0,105680.0,100.38205632]
[1750008317705,0.97542604,105690.0,105680.0,100.39972808]
[1750008317922,0.97542604,105690.0,105680.0,100.38205632]
[1750008318136,0.97542604,105690.0,105680.0,100.39972918]
[1750008318343,0.97542604,105690.0,105680.0,100.39973055]
[1750008318598,0.97542604,105690.0,105680.0,100.40919251]
[1750008318824,0.97542604,105690.0,105680.0,100.40919257]
[1750008319046,0.97542604,105690.0,105680.0,100.39151822]
[1750008319227,0.97542604,105690.0,105680.0,100.40919256]
[1750008319445,0.97542604,105690.0,105680.0,100.39151822]
[1750008319779,0.97542604,105690.0,105680.0,100.38205632]
[1750008320592,0.97542604,105690.0,105680.0,100.39151822]
[1750008320808,0.37038318,105690.0,105680.0,100.39151822]
[1750008321030,0.342,105690.0,105680.0,100.39151822]
[1750008321495,0.002,105690.0,105680.0,100.99656108]
[1750008321914,0.002,105690.0,105680.0,100.39151822]
[1750008323532,0.001,105690.0,105680.0,100.39151822]
[1750008323866,0.001,105690.0,105680.0,100.39251822]
[1750008324557,1.47804499,105700.0,105690.0,0.20815529]
[1750008324812,1.47804499,105700.0,105690.0,0.39345529]
[1750008325492,1.47804499,105700.0,105690.0,0.39345538]
[1750008326204,1.65879999,105700.0,105690.0,0.3839942]
[1750008326625,1.65879999,105700.0,105690.0,0.39345565]
[1750008326838,1.65879999,105700.0,105690.0,0.40291701]
[1750008327466,1.65979999,105700.0,105690.0,0.40291701]
[1750008327680,1.65979999,105700.0,105690.0,0.39345565]
[1750008328328,1.47058524,105700.0,105690.0,0.41237828]
[1750008328536,1.46112451,105700.0,105690.0,0.41237828]
[1750008328752,1.45166387,105700.0,105690.0,0.41237828]
[1750008329575,1.45166387,105700.0,105690.0,0.42183946]
[1750008330442,1.45166387,105700.0,105690.0,0.41237828]
[1750008330650,1.4611246,105700.0,105690.0,0.41237828]
[1750008331100,1.45166387,105700.0,105690.0,0.42183937]
[1750008331308,1.45166387,105700.0,105690.0,0.42183946]
[1750008331726,1.45166387,105700.0,105690.0,0.40291674]
[1750008332161,1.46112451,105700.0,105690.0,0.40291674]
[1750008332813,1.65033926,105700.0,105690.0,0.38399411]
[1750008333028,1.690154,105700.0,105690.0,0.0317]
[1750008333244,1.68069345,105700.0,105690.0,0.0317]
[1750008333530,1.68069345,105700.0,105690.0,0.18526]
[1750008335449,1.67123281,105700.0,105690.0,0.18526]
[1750008341709,1.67123281,105700.0,105690.0,0.0317]
[1750008341923,1.67123281,105700.0,105690.0,0.0161]
[1750008343667,1.62195761,105700.0,105690.0,0.032]
[1750008351632,1.62195761,105700.0,105690.0,0.04146163]
[1750008352287,1.62195761,105700.0,105690.0,0.032]
[1750008352608,1.62195761,105700.0,105690.0,0.04146163]
[1750008352809,1.62195761,105700.0,105690.0,0.032]
[1750008353433,1.62195761,105700.0,105690.0,0.04146163]
[1750008353836,1.62195761,105700.0,105690.0,0.032]
[1750008354441,1.62195761,105700.0,105690.0,0.04146163]
[1750008355071,1.62195761,105700.0,105690.0,0.032]
[1750008355526,1.62195761,105700.0,105690.0,0.04146163]
[1750008355753,1.62195761,105700.0,105690.0,0.032]
[1750008356537,1.69951436,105700.0,105690.0,0.032]
[1750008356968,1.69951436,105700.0,105690.0,0.04146163]
[1750008357177,1.69951436,105700.0,105690.0,0.032]
[1750008357640,1.69951436,105700.0,105690.0,0.04146163]
[1750008357862,1.69951436,105700.0,105690.0,0.23069429]
[1750008358081,1.62195761,105700.0,105690.0,0.23069429]
[1750008358366,1.62195761,105700.0,105690.0,0.032]
[1750008359426,1.62195761,105700.0,105690.0,0.04146163]
[1750008360139,1.62195761,105700.0,105690.0,0.032]
[1750008360597,1.62195761,105700.0,105690.0,0.04146163]
[1750008361399,1.62195761,105700.0,105690.0,0.032]
[1750008361863,1.71810683,105700.0,105690.0,0.032]
[1750008363668,1.71810683,105700.0,105690.0,0.0161]
[1750008364378,1.71810683,105700.0,105690.0,0.0311]
[1750008368137,1.71810683,105700.0,105690.0,0.0161]
[1750008368342,6.76810683,105700.0,105690.0,0.0161]
[1750008369203,6.67195761,105700.0,105690.0,0.0161]
[1750008375033,6.67195761,105700.0,105690.0,0.0315]
[1750008379966,6.67195761,105700.0,105690.0,0.0161]
[1750008382270,6.67195761,105700.0,105690.0,0.0326]
[1750008398817,6.50412397,105700.0,105690.0,0.0326]
[1750008399987,7.30155781,105700.0,105690.0,0.0161]
[1750008400145,0.53869411,105690.0,105680.0,99.99551917]
[1750008400351,1.74877983,105690.0,105680.0,100.16493917]
[1750008400960,1.14373697,105690.0,105680.0,100.16493917]
[1750008401327,1.14373697,105690.0,105680.0,100.01241917]
[1750008401528,1.14373697,105690.0,105680.0,100.16593917]
[1750008401728,1.14373697,105690.0,105680.0,100.16793917]
[1750008401960,1.17223085,105690.0,105680.0,100.01441917]
[1750008402173,1.17223085,105690.0,105680.0,100.16793917]
[1750008404124,1.18169221,105690.0,105680.0,100.35718973]
[1750008404350,1.18169221,105690.0,105680.0,100.36665216]
[1750008404560,0.35892245,105690.0,105680.0,100.38557658]
[1750008404771,0.36838291,105690.0,105680.0,100.39503883]
[1750008404977,0.36838291,105690.0,105680.0,100.40450082]
[1750008405195,0.93236951,105700.0,105690.0,0.22063266]
[1750008405403,1.30075072,105700.0,105690.0,0.23009402]
[1750008405627,1.48996547,105700.0,105690.0,0.23955547]
[1750008405862,1.30075072,105700.0,105690.0,0.24901674]
[1750008406064,1.30075063,105700.0,105690.0,0.24901674]
[1750008406271,0.69570777,105700.0,105690.0,0.23955547]
[1750008406480,1.30175063,105700.0,105690.0,0.23955547]
[1750008406689,1.49096538,105700.0,105690.0,0.23009411]
[1750008406911,1.30175063,105700.0,105690.0,0.23955547]
[1750008407111,1.30175063,105700.0,105690.0,0.24901674]
[1750008408054,1.30275063,105700.0,105690.0,0.23955547]
[1750008408259,1.30275063,105700.0,105690.0,0.24901674]
[1750008409108,1.30275063,105700.0,105690.0,0.23955547]
[1750008409335,1.50142611,105700.0,105690.0,0.23955547]
[1750008409470,1.49196609,105700.0,105690.0,0.23009411]
[1750008409699,1.4825058,105700.0,105690.0,0.2300942]
[1750008409911,1.4825058,105700.0,105690.0,0.23955565]
[1750008410114,1.4825058,105700.0,105690.0,0.24901701]
[1750008410317,1.16463944,105700.0,105690.0,0.24901701]
[1750008410749,1.16463944,105700.0,105690.0,0.23955565]
[1750008412114,1.16463944,105700.0,105690.0,0.24901701]
[1750008413118,1.16463944,105700.0,105690.0,0.0314]
[1750008413397,1.15517871,105700.0,105690.0,0.23955565]
[1750008413631,1.16463944,105700.0,105690.0,0.23955565]
[1750008414240,0.97542469,105700.0,105690.0,0.24901692]
[1750008414454,0.97542469,105700.0,105690.0,0.23955565]
[1750008414653,1.16463944,105700.0,105690.0,0.23955565]
[1750008414856,1.16463944,105700.0,105690.0,0.23009429]
[1750008415062,1.16463944,105700.0,105690.0,0.2490171]
[1750008415270,1.16463944,105700.0,105690.0,0.23955574]
[1750008415470,0.97542469,105700.0,105690.0,0.2490171]
[1750008415680,0.97542469,105700.0,105690.0,0.25847837]
[1750008415891,0.97542416,105700.0,105690.0,0.26793955]
[1750008416105,0.97542416,105700.0,105690.0,0.25847837]
[1750008416511,0.97542416,105700.0,105690.0,0.2490171]
[1750008417392,0.97542416,105700.0,105690.0,0.25847837]
[1750008417599,0.97542416,105700.0,105690.0,0.2490171]
[1750008417809,1.16463891,105700.0,105690.0,0.23955574]
[1750008418016,1.16463891,105700.0,105690.0,0.23955583]
[1750008418429,1.16463891,105700.0,105690.0,0.24901728]
[1750008419234,1.16463891,105700.0,105690.0,0.23955583]
[1750008420019,1.16463891,105700.0,105690.0,0.24901728]
[1750008420241,1.16463891,105700.0,105690.0,0.23955583]
[1750008420446,1.16463891,105700.0,105690.0,0.24901728]
[1750008421271,1.17409964,105700.0,105690.0,0.24901728]
[1750008422108,1.17409964,105700.0,105690.0,0.23955583]
[1750008422956,0.83409964,105700.0,105690.0,0.23955583]
[1750008423608,0.83409964,105700.0,105690.0,0.0314]
[1750008423823,0.83409964,105700.0,105690.0,0.04086163]
[1750008424042,0.83409964,105700.0,105690.0,0.0314]
[1750008424547,0.82463944,105700.0,105690.0,0.0314]
[1750008424766,0.81517898,105700.0,105690.0,0.0314]
[1750008424969,6.20517898,105700.0,105690.0,0.0314]
[1750008425178,6.20487898,105700.0,105690.0,0.0155]
[1750008426048,1.15487898,105700.0,105690.0,0.0309]
[1750008434524,0.54983612,105700.0,105690.0,0.0309]
[1750008434716,1.15487898,105700.0,105690.0,0.0309]
[1750008453002,0.54983612,105700.0,105690.0,0.0309]
[1750008453218,0.54983612,105700.0,105690.0,0.22013266]
[1750008453219,0.96566423,105700.0,105690.0,0.22013266]
[1750008453430,0.9751238,105700.0,105690.0,0.23905547]
[1750008453652,1.17379928,105700.0,105690.0,0.2295942]
[1750008453865,0.98458444,105700.0,105690.0,0.23905565]
[1750008454083,0.98458444,105700.0,105690.0,0.2295942]
[1750008454294,1.16433908,105700.0,105690.0,0.04036163]
[1750008454516,1.16433908,105700.0,105690.0,0.0309]
[1750008454727,1.15487871,105700.0,105690.0,0.0309]
[1750008455221,1.14541825,105700.0,105690.0,0.0309]
[1750008455905,1.14541825,105700.0,105690.0,0.04036163]
[1750008456234,1.14541825,105700.0,105690.0,0.0309]
[1750008461112,1.14541825,105700.0,105690.0,0.0155]
[1750008461562,1.14541825,105700.0,105690.0,0.032]
[1750008463659,1.24156747,105700.0,105690.0,0.0155]
[1750008465023,1.14541825,105700.0,105690.0,0.0155]
[1750008470596,1.17385825,105700.0,105690.0,0.0155]
[1750008474233,6.22385825,105700.0,105690.0,0.0155]
[1750008474889,6.32010001,105700.0,105690.0,0.0155]
[1750008475114,0.19869411,105690.0,105680.0,100.01231917]
[1750008475364,1.40877983,105690.0,105680.0,100.16579917]
[1750008475857,1.40877983,105690.0,105680.0,100.18475917]
[1750008476073,1.40877983,105690.0,105680.0,100.16579917]
[1750008476294,0.22713711,105690.0,105680.0,100.16579917]
[1750008476507,1.43722283,105690.0,105680.0,100.16579917]
[1750008476746,1.43722283,105690.0,105680.0,100.16779917]
[1750008477159,1.43722283,105690.0,105680.0,100.16979917]
[1750008478443,1.46529895,105690.0,105680.0,100.16979917]
[1750008478661,1.48228027,105690.0,105680.0,100.01631917]
[1750008478872,1.48228027,105690.0,105680.0,100.16979917]
[1750008479686,1.48228027,105690.0,105680.0,100.15329917]
[1750008480588,1.46529895,105690.0,105680.0,100.15329917]
[1750008480793,6.95154071,105690.0,105680.0,99.99981917]
[1750008481014,6.96774071,105690.0,105680.0,99.98401917]
[1750008486621,7.14442071,105690.0,105680.0,99.98401917]
[1750008487186,7.46228707,105690.0,105680.0,99.98401917]
[1750008487577,7.46228707,105690.0,105680.0,100.00011917]
[1750008491329,7.55843629,105690.0,105680.0,100.00011917]
[1750008492888,7.47798707,105690.0,105680.0,99.98401917]
[1750008494379,7.28510707,105690.0,105680.0,99.98401917]
[1750008494583,7.47798707,105690.0,105680.0,99.98401917]
[1750008495727,7.49008707,105690.0,105680.0,99.98401917]
[1750008497646,7.47798707,105690.0,105680.0,99.98401917]
[1750008498088,7.57413629,105690.0,105680.0,99.98401917]
[1750008507542,7.60254065,105690.0,105680.0,99.98401917]
[1750008508368,7.57413629,105690.0,105680.0,99.98401917]
[1750008508608,7.60254065,105690.0,105680.0,99.98401917]